Cogmind - Beta 14 @@@ ROGUE MODE // 2024.08.21 @ 16:15:55 Player: Nika Jay Result: Destroyed by Cetus Guard with Advanced KE Penetrator Performance ------------- Evolutions (5) 2500 Regions Visited (10) 2000 Robots Destroyed (106) 530 Value Destroyed (2712) 2712 Prototype IDs (25) 500 Alien Tech Used (0) 0 Bonus (1001) 1001 TOTAL SCORE: 9243 Bonus ------- Follower Combat Kills 770 Aligned with FarCom 300 Friendly Fire -69 Cogmind --------- Core Integrity 0/1000 Matter 168/300 Energy 98/100 System Corruption 3% Temperature Cool (18) Movement Core (50) Location -5/Cetus Parts ------- > --- POWER (2) -------- (None) > --- PROPULSION (5) --- (None) > --- UTILITY (8) ------ (None) > --- WEAPON (2) ------- (None) > --- INVENTORY (5) ---- Micro Fission Core Wheel Wheel Wheel Terrain Scan Processor Peak State ------------ > --- POWER ------------ Neutrino Core Neutrino Core > --- PROPULSION ------- Armored Treads Armored Treads Improved Medium Treads Armored Huge Wheel > --- UTILITY ---------- Huge Storage Unit Improved Terrain Scanner Terrain Scan Processor Advanced ECM Suite Improved Medium Armor Plating Layered Medium Armor Plating Advanced Shield Generator Hacking Suite > --- WEAPON ----------- KE Penetrator Longsword +1 > --- INVENTORY -------- Micro Fission Core Micro Fission Core Armored Treads Wheel Wheel Wheel Wheel Huge Storage Unit Improved Terrain Scanner Improved Terrain Scanner Terrain Scan Processor Advanced ECM Suite Insulated Plating Insulated Plating Insulated Plating Insulated Plating Advanced Shield Generator Advanced Assault Cannon Advanced Assault Cannon Heavy Flak Cannon Heavy Flak Cannon Missile Launcher Great Maul Great Maul Phasing Sabre [Rating: 81] Favorites ----------- Power Angular Momentum Engine Engine Angular Momentum Engine Power Core Neutrino Core Propulsion Armored Treads Treads Armored Treads Leg Flexi-carbon Leg Wheel Wheel Utility Insulated Plating Device Improved Terrain Scanner Storage Huge Storage Unit Processor Terrain Scan Processor Hackware Hacking Suite Protection Insulated Plating Weapon Longsword +1 Energy Gun Small Laser Ballistic Gun KE Penetrator Ballistic Cannon Advanced Assault Cannon Launcher Missile Launcher Special Weapon Mining Laser Slashing Weapon Longsword +1 Build | -11 -10 -10 -10 -9 -8 -7 -6 -5 -5 -5 ------- Run | Yrd Mat Min Exi Min Mat Fac Fac Fac Ext Cet Slots Evolved 10 | . . . . . 4 2 2 2 . . Power 1 | . . . . . . . 1 . . . Propulsion 3 | . . . . . 1 1 . 1 . . Utility 6 | . . . . . 3 1 1 1 . . Weapon . | . . . . . . . . . . . Parts Attached 103 | 8 2 6 3 6 15 9 14 6 27 7 Power 16 | 1 . 2 . 1 2 . 2 2 6 . Engine 10 | 1 . 1 . 1 2 . 2 1 2 . Core 6 | . . 1 . . . . . 1 4 . Reactor . | . . . . . . . . . . . Propulsion 27 | 2 . 2 . . 3 5 5 1 7 2 Treads 8 | . . . . . . 1 2 1 4 . Leg 2 | . . . . . . . . . 2 . Wheel 17 | 2 . 2 . . 3 4 3 . 1 2 Hover . | . . . . . . . . . . . Flight . | . . . . . . . . . . . Utility 43 | 3 2 . 2 2 6 3 7 3 13 2 Device 16 | 2 2 . . . 1 2 3 2 4 . Storage 5 | 1 . . 2 . 1 . 1 . . . Processor 2 | . . . . . 1 . . . . 1 Hackware 1 | . . . . . . . . . 1 . Protection 19 | . . . . 2 3 1 3 1 8 1 Artifact . | . . . . . . . . . . . Weapon 17 | 2 . 2 1 3 4 1 . . 1 3 Energy Gun 3 | 2 . 1 . . . . . . . . Energy Cannon . | . . . . . . . . . . . Ballistic Gun 2 | . . 1 . . . . . . 1 . Ballistic Cannon 7 | . . . . 2 2 1 . . . 2 Launcher 2 | . . . . . 1 . . . . 1 Special Weapon 2 | . . . . 1 1 . . . . . Impact Weapon . | . . . . . . . . . . . Slashing Weapon 1 | . . . 1 . . . . . . . Piercing Weapon . | . . . . . . . . . . . Special Melee Weapon . | . . . . . . . . . . . Unidentified Prototypes . | . . . . . . . . . . . Parts Lost 32 | . . 3 . . 3 1 . . 9 16 Power 2 | . . . . . . . . . . 2 Propulsion 13 | . . 2 . . 2 1 . . 2 6 Utility 13 | . . . . . 1 . . . 7 5 Weapon 4 | . . 1 . . . . . . . 3 Highest Loss Streak 16 | . . 3 . . 2 1 . . 5 16 To Critical Strikes . | . . . . . . . . . . . Average Slot Usage (%) 94 | . 100 97 100 100 99 94 91 94 93 56 Engine 7 | . 14 12 14 14 9 7 11 11 3 . Core 2 | . . 1 . . . . . . 7 6 Treads 9 | . . . . . . 3 7 17 15 3 Wheel 12 | . 28 26 28 28 26 21 11 5 5 4 Device 14 | . 14 14 14 1 9 14 13 21 16 9 Storage 7 | . 14 14 14 14 9 7 6 5 5 3 Processor 5 | . . . . . 9 7 6 5 5 4 Hackware 1 | . . . . . . . . . 4 3 Protection 12 | . . . . 12 17 15 20 12 11 5 Energy Gun 1 | . 28 24 14 1 . . . . . . Ballistic Gun 1 | . . 3 6 . . . . . 3 1 Ballistic Cannon 4 | . . . . 11 8 7 6 5 1 2 Slashing Weapon 6 | . . . 8 14 9 7 6 5 5 1 Peak Build Rating 81 | 9 9 11 14 19 31 47 62 72 81 77 Average Rating 54 | 7 8 8 11 18 28 40 57 71 76 41 On Entrance 31 | . 9 8 7 14 19 31 47 62 72 77 Naked Turns 41 | . . . . . . . . . . 41 Heaviest Build 140 | 12 13 15 28 41 51 55 135 140 140 123 Greatest Support 48 | 20 20 20 20 20 30 48 38 28 38 28 Greatest Overweight (x) 5 | . . . 1 2 2 1 4 4 4 5 Average Overweight (x) 2 | . . . . 1 1 1 2 4 3 . Largest Inventory Capacity 25 | 8 8 8 15 15 15 15 25 25 25 25 Average Capacity 20 | 7 8 8 9 15 15 15 22 25 25 17 Most Carried 25 | 6 8 8 7 15 15 15 25 25 25 24 Average Carried 19 | 2 7 7 5 13 14 14 19 24 24 15 Final Capacity 25 | 8 8 8 15 15 15 15 25 25 25 5 Final Carried 25 | 6 8 5 7 15 15 15 25 25 24 5 Class Distribution -------------------- 48% | Scavenger-Assassin 33% | Assassin 16% | Mutant Dominant Class ---------------- Mutant | -10/Materials Mutant | -10/Mines Mutant | -10/Exiles Mutant | -9/Mines Scavenger-Assassin | -8/Materials Scavenger-Assassin | -7/Factory Assassin | -6/Factory Assassin | -5/Factory Scavenger-Assassin | -5/Extension Mutant | -5/Cetus Resources | -11 -10 -10 -10 -9 -8 -7 -6 -5 -5 -5 ----------- Run | Yrd Mat Min Exi Min Mat Fac Fac Fac Ext Cet Matter Collected 1623 | 280 20 60 . 90 157 95 142 95 684 . Remotely . | . . . . . . . . . . . Salvage Created 4983 | 167 72 75 . 188 866 309 666 1359 1247 34 Parts 263 | 17 6 5 . 15 37 12 35 58 77 1 Haulers Intercepted 1 | . 1 . . . . . . . . . Recyclers Shooed 5 | . . . . . . . . 5 . . Parts Field Recycled . | . . . . . . . . . . . Retrieved Matter . | . . . . . . . . . . . Parts Self-Destructed . | . . . . . . . . . . . Prevented . | . . . . . . . . . . . Kills | -11 -10 -10 -10 -9 -8 -7 -6 -5 -5 -5 ------- Run | Yrd Mat Min Exi Min Mat Fac Fac Fac Ext Cet Combat Hostiles Destroyed 48 | . 1 2 . . 12 2 6 6 18 1 Melee 37 | . . . . . 12 2 6 6 11 . Guns 7 | . 1 2 . . . . . . 4 . Cannons 4 | . . . . . . . . . 3 1 Classes Destroyed 14 | 2 2 2 . 2 3 1 . . 2 . Worker 19 | . . . . 2 1 2 7 4 3 . Builder 7 | . . . . 1 1 . 1 . 4 . Tunneler 10 | 5 . 1 . 1 . . 2 1 . . Hauler 1 | . 1 . . . . . . . . . Recycler 18 | 1 . . . 2 3 2 2 7 1 . Operator 1 | . . . . . . . . . 1 . Watcher 2 | . . . . . 1 . . . 1 . Swarmer 13 | . 1 . . . . . 4 3 5 . Grunt 12 | . . 1 . . 7 . 1 . 3 . Sentry 7 | . . . . . 4 1 . . 2 . Demolisher 1 | . . 1 . . . . . . . . Hunter 8 | . . . . . 1 . . . 7 . Programmer 5 | . . . . . . 1 1 3 . . Behemoth 1 | . . . . . . . . . 1 . Cetus Guard 1 | . . . . . . . . . . 1 Best Kill Streak 5 | 3 1 1 . 3 5 2 4 4 3 1 Combat Bots Only 4 | . 1 1 . . 4 1 4 3 3 1 Max Kills in Single Turn 1 | 1 1 1 . 1 1 1 1 1 1 1 Gunslinging . | . . . . . . . . . . . Exploded . | . . . . . . . . . . . Melee 1 | . . . . . 1 1 1 1 1 . Uniques/NPCs Destroyed . | . . . . . . . . . . . Combat | -11 -10 -10 -10 -9 -8 -7 -6 -5 -5 -5 -------- Run | Yrd Mat Min Exi Min Mat Fac Fac Fac Ext Cet Hostile Shots Fired 515 | . 4 13 . . 43 30 29 29 263 104 Missed 141 | . . 2 . . 11 6 6 7 79 30 Damage Taken 6753 | . 29 402 . . 521 256 322 271 2695 2257 Core 1208 | . . 115 . . 54 . 23 15 171 830 Absorbed by Shields 998 | . . . . . . . . 102 896 . Ignored by Resistances 129 | . . . . . . 17 72 37 3 . Regen/Repaired (Parts) 4 | . . . . . 4 . . . . . Core Remaining (%) 88 | 100 . . . 54 90 100 97 . . . Volleys Fired 129 | 7 7 12 . 8 4 1 . 2 76 12 Largest 2 | 2 2 2 . 1 1 1 . 1 1 2 Hottest 105 | 90 90 105 . 100 100 44 . 48 48 96 Shots Fired 161 | 14 14 21 . 8 4 1 1 3 78 17 Gun 108 | 14 14 21 . . . . . . 57 2 Cannon 39 | . . . . . 3 1 1 3 21 10 Launcher 5 | . . . . . . . . . . 5 Special 9 | . . . . 8 1 . . . . . Kinetic 98 | . . . . . 3 1 1 3 78 12 Thermal 58 | 14 14 21 . 8 1 . . . . . Explosive 5 | . . . . . . . . . . 5 Electromagnetic . | . . . . . . . . . . . Robot Hit Streak 13 | 10 5 8 . . 2 3 4 . 13 8 Robot Miss Streak 7 | 1 2 2 . . 1 . . 3 7 2 Penetration Max 1 | . . . . . . . . . 1 . Secondary Targets . | . . . . . . . . . . . Shots Hit Robots 250 | 11 9 15 . 7 37 17 29 29 83 13 Core Hits 116 | 7 4 5 . 3 16 4 11 12 37 17 Critical Kills . | . . . . . . . . . . . Critical Parts Destroyed 1 | . . . . . . . . . 1 . Critical Strikes 12 | . . 2 . . 1 2 2 2 3 . Burn 2 | . . 2 . . . . . . . . Destroy 1 | . . . . . . . . . 1 . Sever 9 | . . . . . 1 2 2 2 2 . Melee Attacks 164 | . . . . 7 38 16 31 33 39 . Impact . | . . . . . . . . . . . Slashing 164 | . . . . 7 38 16 31 33 39 . Piercing . | . . . . . . . . . . . Sneak Attacks 53 | . . . . 7 5 5 13 14 9 . Combat Hostiles . | . . . . . . . . . . . Follow-up Attacks . | . . . . . . . . . . . Damage Inflicted 11705 | 134 101 199 . 645 1806 1033 1857 2000 3372 558 Guns 1376 | 134 101 199 . . . . . . 942 . Cannons 631 | . . . . . 44 26 30 . 292 239 Explosions 319 | . . . . . . . . . . 319 Melee 9379 | . . . . 645 1762 1007 1827 2000 2138 . Ramming . | . . . . . . . . . . . Kinetic 1573 | . . . . . 44 26 30 . 1234 239 Thermal 434 | 134 101 199 . . . . . . . . Explosive 319 | . . . . . . . . . . 319 Electromagnetic . | . . . . . . . . . . . Impact . | . . . . . . . . . . . Slashing 9379 | . . . . 645 1762 1007 1827 2000 2138 . Piercing . | . . . . . . . . . . . Highest Corruption 3 | . 1 1 1 1 . 1 3 2 3 3 Average Corruption 2 | . 1 1 1 1 . 1 2 2 2 3 Corruption Purged . | . . . . . . . . . . . Corruption Blocked . | . . . . . . . . . . . Effects 61 | . . 1 1 2 . 1 9 7 37 3 Message Errors 15 | . . . . 2 . . 1 . 10 2 Matter Fused 13 | . . . . . . . 1 1 10 1 Heat Flow Errors 7 | . . . 1 . . 1 . 3 2 . Energy Discharges 5 | . . . . . . . 2 . 3 . Parts Rejected 1 | . . . . . . . . . 1 . Data Loss (minor) 10 | . . . . . . . 1 1 8 . Data Loss (major) 5 | . . 1 . . . . 2 1 1 . Misfires 4 | . . . . . . . 1 1 2 . Alerts 1 | . . . . . . . 1 . . . Overload Shots . | . . . . . . . . . . . Overflow Damage 2270 | . . . . 234 224 224 510 632 419 27 Projectiles . | . . . . . . . . . . . Explosions 27 | . . . . . . . . . . 27 Melee 2243 | . . . . 234 224 224 510 632 419 . Knockbacks 1 | . . . . . . 1 . . . . Impact . | . . . . . . . . . . . Kinetic 1 | . . . . . . 1 . . . . Secondary . | . . . . . . . . . . . Self-Inflicted Damage 193 | . . . . . . . . . . 193 Shots 5 | . . . . . . . . . . 5 Rammed . | . . . . . . . . . . . Targets Rammed . | . . . . . . . . . . . Kicked . | . . . . . . . . . . . Crushed . | . . . . . . . . . . . Highest Temperature 336 | 60 120 63 166 192 44 300 40 208 314 336 Average Temperature 89 | 23 49 32 91 93 15 155 17 73 102 161 Received Heat Transfer 1008 | . . 45 . . 270 108 27 . 225 333 Effects 2 | . . . . . . . . . 1 1 Shutdowns 1 | . . . . . . . . . 1 . Energy Bleed 1 | . . . . . . . . . . 1 Siege Activations . | . . . . . . . . . . . Robots Corrupted . | . . . . . . . . . . . Combat Hostiles . | . . . . . . . . . . . Parts Fried 1 | . . . . . . . . . 1 . Impact Corruptions . | . . . . . . . . . . . Robots Melted . | . . . . . . . . . . . Combat Hostiles . | . . . . . . . . . . . Parts Melted 2 | . . 2 . . . . . . . . Heat Transferred 1252 | 347 273 632 . . . . . . . . Parts Sabotaged . | . . . . . . . . . . . Parts Stolen . | . . . . . . . . . . . Parts Stripped . | . . . . . . . . . . . Power Chain Reactions . | . . . . . . . . . . . Alert | -11 -10 -10 -10 -9 -8 -7 -6 -5 -5 -5 ------- Run | Yrd Mat Min Exi Min Mat Fac Fac Fac Ext Cet Peak Influence 518 | 30 102 74 . 30 210 108 117 342 518 151 Initial 151 | . 19 39 . . . 23 . . 118 151 Average 136 | 14 51 53 . 16 69 52 39 148 240 90 Maximum Alert Level 2 | . . . . . 1 . . 1 2 . Low Security (%) 72 | 100 100 100 . 100 97 100 100 68 40 100 Level 1 25 | . . . . . 2 . . 31 54 . Level 2 1 | . . . . . . . . . 5 . Level 3 . | . . . . . . . . . . . Level 4 . | . . . . . . . . . . . Level 5 . | . . . . . . . . . . . High Security . | . . . . . . . . . . . Max Security . | . . . . . . . . . . . Squads Dispatched 21 | . 1 . . . 6 1 . 4 9 . Investigation 10 | . 1 . . . 3 . . 1 5 . Extermination 3 | . . . . . . 1 . 2 . . Reinforcement 5 | . . . . . . . . 1 4 . Assault . | . . . . . . . . . . . Garrison 3 | . . . . . 3 . . . . . Intercept . | . . . . . . . . . . . Searches Triggered . | . . . . . . . . . . . Construction Impeded 2 | . . . . . . . . . 2 . Haulers Reinforced . | . . . . . . . . . . . Active Scanning Responses . | . . . . . . . . . . . Cargo Convoy Interrupts . | . . . . . . . . . . . Stealth | -11 -10 -10 -10 -9 -8 -7 -6 -5 -5 -5 --------- Run | Yrd Mat Min Exi Min Mat Fac Fac Fac Ext Cet Distress Signals 5 | . . . . . 1 . 1 . 2 1 Communications Jammed . | . . . . . . . . . . . Distress Signals . | . . . . . . . . . . . Times Spotted 115 | . 4 5 . . 18 2 6 10 65 5 Peak Tracking Total 6 | . 4 2 . . 6 1 4 4 6 5 Tactical Retreats 27 | . 1 1 . . 2 . . 2 21 . Traps | -11 -10 -10 -10 -9 -8 -7 -6 -5 -5 -5 ------- Run | Yrd Mat Min Exi Min Mat Fac Fac Fac Ext Cet Traps Triggered 4 | . . . . . 1 . 1 . 2 . Indirectly . | . . . . . . . . . . . Trap Hack Attempts . | . . . . . . . . . . . Triggered . | . . . . . . . . . . . Disarmed . | . . . . . . . . . . . Reprogrammed . | . . . . . . . . . . . Reused . | . . . . . . . . . . . Traps Extracted . | . . . . . . . . . . . Installed . | . . . . . . . . . . . Triggered . | . . . . . . . . . . . Machines | -11 -10 -10 -10 -9 -8 -7 -6 -5 -5 -5 ---------- Run | Yrd Mat Min Exi Min Mat Fac Fac Fac Ext Cet Machines Disabled 1 | . . . . . . . . . 1 . Max in Single Turn 1 | . . . . . . . . . 1 . Garrison Access 1 | . . . . . . . . 1 . . Machines Repaired . | . . . . . . . . . . . Machines Dismantled . | . . . . . . . . . . . Machines Sabotaged . | . . . . . . . . . . . Overloaded Fab Kills . | . . . . . . . . . . . Hacking | -11 -10 -10 -10 -9 -8 -7 -6 -5 -5 -5 --------- Run | Yrd Mat Min Exi Min Mat Fac Fac Fac Ext Cet Machines Accessed 29 | . 3 . 1 . 4 2 3 1 13 2 Terminals 24 | . 2 . . . 3 2 3 . 12 2 Fabricators . | . . . . . . . . . . . Repair Stations 1 | . . . . . 1 . . . . . Recycling Units 2 | . 1 . . . . . . . 1 . Scanalyzers . | . . . . . . . . . . . Garrison Access 1 | . . . . . . . . 1 . . Total Hacks 68 | . 10 . 1 . 11 3 5 2 30 6 Successful 38 | . 5 . 1 . 6 . 2 1 22 1 Failed 29 | . 5 . . . 5 3 3 1 7 5 Catastrophic 2 | . . . . . . . 2 . . . Database Lockouts 1 | . . . . . . . . . 1 . Manual 32 | . 8 . 1 . 8 2 3 2 8 . Terminals 58 | . 7 . . . 10 3 5 . 27 6 Fabricators . | . . . . . . . . . . . Repair Stations 1 | . . . . . 1 . . . . . Recycling Units 6 | . 3 . . . . . . . 3 . Scanalyzers . | . . . . . . . . . . . Garrison Access 2 | . . . . . . . . 2 . . Terminal Hacks 28 | . 1 . 1 . 5 . 2 . 18 1 Record 13 | . . . . . 4 . 2 . 6 1 Prototype ID Bank 1 | . . . . . . . . . 1 . Open Door 8 | . . . . . . . . . 8 . Branch Access Points 1 | . . . . . 1 . . . . . Unreport Threat 2 | . . . . . . . . . 2 . Locate Traps 1 | . . . . . . . . . 1 . Zone Layout 1 | . 1 . . . . . . . . . Derelict Proto ID Bank 1 | . . . 1 . . . . . . . Fabricator Hacks . | . . . . . . . . . . . Repair Station Hacks . | . . . . . . . . . . . Recycling Unit Hacks 3 | . 1 . . . . . . . 2 . Report Inventory 2 | . 1 . . . . . . . 1 . Retrieve Components 1 | . . . . . . . . . 1 . Scanalyzer . | . . . . . . . . . . . Garrison Access Hacks . | . . . . . . . . . . . Unauthorized Hacks 6 | . 2 . . . 1 . . 1 2 . Terminals 4 | . 2 . . . . . . . 2 . Botnet 4 | . 2 . . . . . . . 2 . Fabricators . | . . . . . . . . . . . Repair Stations 1 | . . . . . 1 . . . . . Patch 1 | . . . . . 1 . . . . . Recycling Units . | . . . . . . . . . . . Scanalyzers . | . . . . . . . . . . . Garrison Access 1 | . . . . . . . . 1 . . Jam 1 | . . . . . . . . 1 . . Data Cores Recovered . | . . . . . . . . . . . Used . | . . . . . . . . . . . Hacking Detections 20 | . 2 . . . 3 2 3 . 8 2 Full Trace Events 4 | . 1 . . . 1 . . . 2 . Feedback Events 2 | . 1 . . . . . . . 1 . Corruption 2 | . 1 . . . . . . . 1 . Feedback Blocked . | . . . . . . . . . . . Robot Schematics Acquired . | . . . . . . . . . . . Robots Built . | . . . . . . . . . . . Authchips . | . . . . . . . . . . . Time . | . . . . . . . . . . . Total Robot Build Rating . | . . . . . . . . . . . Part Schematics Acquired . | . . . . . . . . . . . Parts Built . | . . . . . . . . . . . Authchips . | . . . . . . . . . . . Time . | . . . . . . . . . . . Total Part Build Rating . | . . . . . . . . . . . Parts Repaired . | . . . . . . . . . . . Time . | . . . . . . . . . . . Parts Recycled . | . . . . . . . . . . . Recycled Matter . | . . . . . . . . . . . Retrieved Matter . | . . . . . . . . . . . Retrieved Components 1 | . . . . . . . . . 1 . Parts Scanalyzed . | . . . . . . . . . . . Part Schematics Acquired . | . . . . . . . . . . . Parts Damaged . | . . . . . . . . . . . Bothacking | -11 -10 -10 -10 -9 -8 -7 -6 -5 -5 -5 ------------ Run | Yrd Mat Min Exi Min Mat Fac Fac Fac Ext Cet Used RIF Installer . | . . . . . . . . . . . Robots Hacked . | . . . . . . . . . . . Non-combat . | . . . . . . . . . . . Combat . | . . . . . . . . . . . Robot Hacks Applied . | . . . . . . . . . . . Relay Couplers Released . | . . . . . . . . . . . Fabnet Peak Effective % . | . . . . . . . . . . . Robots Rewired 4 | . . . . . . . . . 4 . Allies Hacked . | . . . . . . . . . . . Hacks Repelled . | . . . . . . . . . . . Allies | -11 -10 -10 -10 -9 -8 -7 -6 -5 -5 -5 -------- Run | Yrd Mat Min Exi Min Mat Fac Fac Fac Ext Cet Total Allies 16 | . . . . 3 . . . . 13 . Largest Group 7 | . . . . 3 3 . . . 7 . Highest-Rated Group 342 | . . . . 72 72 . . . 342 . Highest-Rated Ally 159 | . . . . 31 31 . . . 159 . Total Orders . | . . . . . . . . . . . Ally Attacks 225 | . . . . . 9 . . . 216 . Total Damage 4653 | . . . . . 128 . . . 4525 . Kills 28 | . . . . . . . . . 28 . Allies Corrupted . | . . . . . . . . . . . Allies Melted 1 | . . . . . . . . . 1 . Intel | -11 -10 -10 -10 -9 -8 -7 -6 -5 -5 -5 ------- Run | Yrd Mat Min Exi Min Mat Fac Fac Fac Ext Cet Robot Analysis Total . | . . . . . . . . . . . Derelict Logs Recovered 1 | . . . . 1 . . . . . . Drone Launches . | . . . . . . . . . . . Drone Recoveries . | . . . . . . . . . . . Exploration | -11 -10 -10 -10 -9 -8 -7 -6 -5 -5 -5 ------------- Run | Yrd Mat Min Exi Min Mat Fac Fac Fac Ext Cet Turns Passed 7257 | 141 121 230 216 421 964 421 832 1189 2606 116 Spaces Moved 4388 | 128 111 208 256 329 505 346 524 529 1346 106 Core 86 | 2 . . . . . . . . . 84 Treads . | . . . . . . . . . . . Legs . | . . . . . . . . . . . Wheels 4302 | 126 111 208 256 329 505 346 524 529 1346 22 Hover . | . . . . . . . . . . . Flight . | . . . . . . . . . . . Fastest Speed 50 | 50 80 80 80 95 95 95 105 160 135 50 Average Speed 125 | 79 80 80 81 107 95 100 129 160 159 72 Slowest Speed 160 | 80 80 80 95 110 110 115 160 160 160 160 Overloaded Moves . | . . . . . . . . . . . Propulsion Burnouts . | . . . . . . . . . . . Robots Hopped . | . . . . . . . . . . . Cave-ins Triggered . | . . . . . . . . . . . Exploration Rate (%) 36 | 5 31 35 61 55 34 8 14 15 92 50 Regions Visited 10 Branch Regions 5 Pre-discovered Areas . | . . . . . . . . . . . Known Exits Taken . | . . . . . . . . . . . Unknown Exits Taken 10 | 1 1 1 1 1 1 1 1 1 1 . Scrap Searched 1 | . . . . 1 . . . . . . Spaces Dug 13 | . . . . 6 4 . 2 1 . . Terrain Destroyed 46 | . . . . 6 4 . 2 2 12 20 Melee 6 | . . . . . 3 . 2 1 . . Projectile 21 | . . . . 6 1 . . 1 12 1 AOE 19 | . . . . . . . . . . 19 Terrain Rammed . | . . . . . . . . . . . Walls Destroyed . | . . . . . . . . . . . Machines Disabled . | . . . . . . . . . . . Actions | -11 -10 -10 -10 -9 -8 -7 -6 -5 -5 -5 --------- Run | Yrd Mat Min Exi Min Mat Fac Fac Fac Ext Cet Total 5811 | 149 129 253 262 369 942 402 644 845 1689 127 Wait 877 | . 3 22 . . 366 23 59 260 142 2 Move 4378 | 127 110 207 255 328 504 345 523 528 1345 106 Hop . | . . . . . . . . . . . Pick Up 59 | 6 3 2 1 11 8 2 9 8 9 . Fast Attach 30 | 7 2 . 1 2 3 4 1 1 9 . Attach 29 | . . 4 . 1 6 1 1 2 8 6 Detach 13 | . 1 . 1 3 1 . . 1 6 . Swap 44 | 1 . 2 2 3 6 4 12 3 10 1 Drop 57 | 1 3 4 2 6 6 6 8 7 14 . Fire 129 | 7 7 12 . 8 4 1 . 2 76 12 Melee 164 | . . . . 7 38 16 31 33 39 . Ram . | . . . . . . . . . . . Kick . | . . . . . . . . . . . Crush . | . . . . . . . . . . . Escape Stasis 8 | . . . . . . . . . 8 . Rewire 23 | . . . . . . . . . 23 . Trap . | . . . . . . . . . . . Miscellaneous . | . . . . . . . . . . . Route ------- -11/Scrapyard -10/Materials -10/Mines -10/Exiles -9/Mines -8/Materials -7/Factory -6/Factory -5/Factory -5/Extension (discovered 3 exits: [*Fac x2] / *Cet) -5/Cetus History --------- Turn | Location | Event 17 | -11/Scrapyard | Discovered new exit (range 16) 142 | -11/Scrapyard | Entered Materials 230 | -10/Materials | Discovered new exit (range 12) 263 | -10/Materials | Entered Mines 287 | -10/Mines | Assembled infested the area 292 | -10/Mines | Assisted by a Guerilla fighting off Assembled 315 | -10/Mines | Build established: Mutant 467 | -10/Mines | Lost 3 parts (2n1w) 488 | -10/Mines | Deemed a non-threat by the Exiles lab entrance 489 | -10/Mines | Discovered new exit (range 5) 493 | -10/Mines | Entered Exiles 514 | -10/Exiles | Met 8R-AWN 526 | -10/Exiles | Met EX-HEX 549 | -10/Exiles | Met EX-BIN 558 | -10/Exiles | Aligned with FarCom system 559 | -10/Exiles | Given EX-Vault access code 578 | -10/Exiles | Opened EX-Vault 584 | -10/Exiles | Found Longsword +1 602 | -10/Exiles | Warned to stay clear of 0b10 Research branches 624 | -10/Exiles | Met EX-DEC 699 | -10/Exiles | Discovered new exit (range 12) 709 | -10/Exiles | Left Exiles lab with Longsword +1 709 | -10/Exiles | Entered Mines 739 | -9/Mines | Found DCF Scrap (13 items) 939 | -9/Mines | Received a Mining Laser from a helpful Derelict 1108 | -9/Mines | Learned 2 Materials zone layouts 1121 | -9/Mines | Discovered new exit (range 5) 1130 | -9/Mines | Entered Materials 1130 | -8/Materials | Accompanied by 3 allies 1130 | -8/Materials | Evolved 4 slots: Propulsion x1, Utility x3 1135 | -8/Materials | Led the pair of lost Derelicts to an unsafe place 1324 | -8/Materials | Garrison activated, responded to threat 1437 | -8/Materials | Build established: Scavenger-Assassin 2073 | -8/Materials | Discovered new exit (range 16) 2094 | -8/Materials | Entered Factory 2094 | -7/Factory | Evolved 2 slots: Propulsion x1, Utility x1 2474 | -7/Factory | Discovered new exit (range 13) 2515 | -7/Factory | Entered another Factory area 2515 | -6/Factory | Evolved 2 slots: Power x1, Utility x1 2623 | -6/Factory | Build established: Assassin 3302 | -6/Factory | Discovered new exit (range 9) 3347 | -6/Factory | Entered another Factory area 3347 | -5/Factory | Evolved 2 slots: Propulsion x1, Utility x1 4510 | -5/Factory | Discovered new exit (range 5) 4536 | -5/Factory | Entered Extension 4971 | -5/Extension | Rescued A7 4995 | -5/Extension | Rescued a captive Derelict 5028 | -5/Extension | Rescued a captive Derelict 5029 | -5/Extension | Rescued a captive Derelict 5073 | -5/Extension | Build established: Scavenger-Assassin 5256 | -5/Extension | Rescued a captive Derelict 5257 | -5/Extension | Rescued a captive Derelict 5753 | -5/Extension | Spotted B-75 Beast 5790 | -5/Extension | Spotted B-75 Beast 5811 | -5/Extension | Destroyed B-75 Beast 5841 | -5/Extension | Lost 5 allies 5856 | -5/Extension | Discovered new exit (range 3) 6001 | -5/Extension | Rescued a captive Derelict 6047 | -5/Extension | Rescued a captive Derelict 6168 | -5/Extension | Rescued a captive Derelict 6169 | -5/Extension | Rescued a captive Derelict 6298 | -5/Extension | Central database locked down 6341 | -5/Extension | Lost 4 allies 6433 | -5/Extension | Extracted ID and sensor layout for unrecognized location from A7's data core 6561 | -5/Extension | Disrupted transfer network 6781 | -5/Extension | Lost 5 parts (2n3u) 6918 | -5/Extension | Lost 3 parts (3u) 6963 | -5/Extension | Discovered new exit (range 16) 6963 | -5/Extension | Discovered new exit (range 16) 7142 | -5/Extension | Entered Cetus 7163 | -5/Cetus | Spotted Cetus Guard 7163 | -5/Cetus | Spotted Cetus Guard 7167 | -5/Cetus | Spotted Cetus Guard 7167 | -5/Cetus | Spotted Cetus Guard 7196 | -5/Cetus | Destroyed Cetus Guard 7209 | -5/Cetus | Core integrity fell below 50% 7217 | -5/Cetus | Released all parts (6) 7246 | -5/Cetus | Lost 16 parts (2p6n5u3w) 7254 | -5/Cetus | Core integrity fell below 20% 7255 | -5/Cetus | Cetus Manufacturing Module disabled 7258 | -5/Cetus | Destroyed by Cetus Guard with Advanced KE Penetrator Last Messages --------------- 07222_ Slug penetrates W-25 Informer. 07222_ W-25 Informer suffers critical hit (Destroy). 07222_ Slug penetrates Wall. 07230_ Connecting with Cetus Terminal... 07230_ Current location identified: Cetus >>Query(PAWN 4) Proto-AWare Network, a precursor to [MAIN.C]. The fourth attempt by [Dr. REDACTED] to create an AI patterned after the human mind. Motivating its design was the theory that such a system would be able to better devise creative solutions for unforeseen problems. Like previous iterations this one eventually succumbed to the "god syndrome" resulting from the corrupting effect of infinite power, even if just a simulated illusion. Building a mind both flexible enough to wield vast power and remain stable at the same time is proving to be the most difficult part of realizing a sentient system. 07232_ Connecting with Cetus Terminal... 07252_ Slug penetrates Reinforced Barrier. 07255_ Cetus Manufacturing Module disabled. 07255_ Slug penetrates Cetus Manufacturing Module. 07256_ Penetrated by Slug. Map ----- +----------------------------------------------------+ | ?????????????????????????????????????????????????? | | ?????????????????????????????????????????????????? | | ?????????????????????????????????????????????????? | | ?????????????????????????????????????????????????? | | ?????????????????????????????????????????????????? | | ?????????????????????????????????????????????????? | | ?????????????????????????????????????????????????? | | ???????????????????????????????????????????????? | | ?#?????????????????????????????????????????????? | | ???????????????????????????????????????????????? | | #?###??#???????????????????????????????????????? | | #?????#?#??????????????????????????????????????? | | ##?????????????????????????????????????????????? | | #????????##????????????????????????????????????? | | ##?#??##????#??????????????????????????????????? | | ##???##????????????????????????????????????????? | | #???##??????##?##########?#????????????????????? | | #### #?#????""""" """ """""????????????????????? | | # # ###??????" """"""" " #???????????????????? | | " #???????#"""""""""""""""#???????????????????? | | ! #????????#""""" """ """""#???????????????????? | | =/!*####?#???#""""""" """""""#?? ""?????????????? | | =]!/ ##??#?#""" " " """#? ""#????????????? | | %]]] ######?#" """ "" "#" ""#????????????? | | =/ "## ### #????????????? | | ; @ +????????????? | | w + Y +????????????? | | ; Y +????????????? | | ###### ###" Y #????????????? | | #####??#####?#" "" """"""""#T #????????????? | | ?????#?????#?######++###########?"""#????????????? | | ?#???#?#??#??#" " ""#???????????????????????? | | ??#???????#??###" """#???????????????????????? | | ##?##????????#" " ""#???????????????????????? | | ??##????#????###" """#???????????????????????? | | ?##??????????#" "###???????????????????????? | | ??##?????#???#" """"#???????????????????????? | | ?#?#?????????#" T"""#???????????????????????? | | ?????????????#" """"#???????????????????????? | | #????????????### "###???????????????????????? | | ?????????????# """"#???????????????????????? | | ?????????????#" " T"""#???????????????????????? | | ?????????????#" """"#???????????????????????? | | ?????????????#" " " #"###???????????????????????? | | ?????????????# #"""????????????????????????? | | ?????????????#""" """#"""????????????????????????? | | ?????????????#########???????????????????????????? | | ?????????????????????????????????????????????????? | | ?????????????????????????????????????????????????? | | ?????????????????????????????????????????????????? | +----------------------------------------------------+ Best States ------------- Heat Dissipation 54 Energy Generation 33 Energy Capacity 530 Matter Stores 300 Matter Capacity 300 Sight Range 16 Terrain Scan Range 16 Terrain Scan Density 85 ECM Strength 2 Armor Coverage 600 Resistance: KI 20 Resistance: EM 15 Core Shielding 20 Phase Shifting 5 Evasion (%) 50 Armor Integrity Analysis 30 Recoil Reduction 3 Offensive Hacking 10 Item Schematics ----------------- None Robot Schematics ------------------ None Fabricated ------------ Nothing Alien Tech Used ----------------- None Achievements -------------- Prison Break Challenges ------------ None Game ------ Seed StructuralEtherialAutocannon Manual? 0 Play Time 01:58:42 Cumulative 37.8 hours Start 2024.08.17 @ 18:08:44 End 2024.08.21 @ 16:15:55 Sessions 17 Manual Loads 0 Difficulty Rogue Special Mode None Game No. 27 Rogue 23 Adventurer 2 Explorer 2 Win Type - Total 0 Types 0/0/0/0/0/0/0/0/0 Lore% 24 Gallery% 29 Achievement% 30 Wizard Run 0 Options --------- Layout 0 ASCII 0 Keyboard 1 Movement Arrows Keybinds 1 Fullscreen 2 Font 18/SmallcapsGlow Map View 76x50 Zoom Use 0% Tactical HUD 1 Map Filters NONE Filters NONE Steam 1 RUN: 59848a22-4f8a-4063-a7e5-27ba9deb1116